bitfinex/quotes_SOLUSD_20260119
["timestamp","ask_amount","ask_price","bid_price","bid_amount"]
[1768809221947,9.86489828,133.55,133.51,2.35017199]
[1768809222147,7.48806121,133.55,133.51,2.35017199]
[1768809222352,2.37683707,133.54,133.51,2.35017199]
[1768809230654,9.86524615,133.54,133.51,2.35017199]
[1768809231263,9.86490183,133.55,133.52,2.35017199]
[1768809232860,2.16274467,133.54,133.52,2.35017199]
[1768809233154,2.16274467,133.54,133.51,11.10707253]
[1768809234759,9.65114824,133.54,133.51,11.10707253]
[1768809235454,9.65114824,133.54,133.52,2.19624424]
[1768809239259,2.16274467,133.55,133.52,2.19624424]
[1768809240164,2.16274467,133.55,133.51,2.19624424]
[1768809240664,9.65113766,133.54,133.51,2.19624424]
[1768809247365,2.16274467,133.55,133.52,2.19624424]
[1768809248566,9.65065809,133.55,133.52,2.19624424]
[1768809248748,2.16274467,133.54,133.52,2.19624424]
[1768809250968,9.65128969,133.54,133.51,2.19624424]
[1768809270780,9.5912897,133.54,133.51,2.19624424]
[1768809290199,9.53128971,133.54,133.51,2.19624424]
[1768809295308,9.47128972,133.54,133.51,2.19624424]
[1768809298902,2.27840873,133.54,133.51,2.19624424]
[1768809301507,2.27840873,133.53,133.5,35.06544162]
[1768809301714,2.27840873,133.53,133.5,27.57481373]
[1768809302004,2.27840873,133.53,133.51,2.26398544]
[1768809302589,2.27840873,133.53,133.5,32.80143486]
[1768809302791,2.27840873,133.53,133.5,35.0654203]
[1768809303112,2.27840873,133.53,133.51,2.26398544]
[1768809305924,2.27840873,133.53,133.5,8.91082829]
[1768809305925,2.27840873,133.52,133.5,8.91082829]
[1768809306100,2.27840873,133.52,133.47,11.17481373]
[1768809306493,2.27840873,133.52,133.47,2.26398544]
[1768809307613,2.27840873,133.5,133.47,2.26398544]
[1768809307809,2.27840873,133.5,133.46,25.31082829]
[1768809308010,2.27840873,133.5,133.46,27.57481373]
[1768809308705,2.27840873,133.5,133.46,35.06768645]
[1768809310115,2.27840873,133.49,133.46,35.06768645]
[1768809310624,2.27840873,133.49,133.47,2.26398544]
[1768809310918,2.27840873,133.49,133.46,27.57481373]
[1768809311600,2.27840873,133.49,133.46,11.17481373]
[1768809313228,2.27840873,133.48,133.46,11.17481373]
[1768809313518,2.21840874,133.48,133.46,11.17481373]
[1768809313724,2.21840874,133.48,133.46,2.26398544]
[1768809314305,7.49183286,133.48,133.45,8.91082829]
[1768809314504,7.4906367,133.5,133.45,8.91082829]
[1768809314705,26.21722846,133.5,133.44,18.66398544]
[1768809314912,26.21722846,133.5,133.44,26.15787381]
[1768809315428,2.27840873,133.49,133.45,2.26398544]
[1768809316826,7.49175906,133.48,133.45,2.26398544]
[1768809317215,9.77016779,133.48,133.45,2.26398544]
[1768809317416,7.49175906,133.48,133.45,2.26398544]
[1768809317618,2.27840873,133.47,133.44,18.66398544]
[1768809317810,2.21840874,133.47,133.44,18.66398544]
[1768809318011,2.21840874,133.47,133.42,41.15021262]
[1768809318211,2.21840874,133.47,133.42,9.75906073]
[1768809318432,2.21840874,133.47,133.43,2.26398544]
[1768809320628,2.27840873,133.46,133.43,2.26398544]
[1768809320929,2.27840873,133.46,133.41,9.75944851]
[1768809321316,2.27840873,133.46,133.42,18.72939766]
[1768809321743,2.27840873,133.46,133.41,2.26398544]
[1768809322604,2.17420621,133.44,133.41,2.26398544]
[1768809322810,2.11420622,133.44,133.41,2.26398544]
[1768809324434,1.99420624,133.44,133.41,2.26398544]
[1768809330037,9.4882448,133.44,133.41,2.26398544]
[1768809330837,9.42824481,133.44,133.41,2.26398544]
[1768809334940,9.66824477,133.44,133.41,2.26398544]
[1768809337142,2.17420621,133.43,133.4,2.24128822]
[1768809337336,26.22312129,133.47,133.4,2.24128822]
[1768809339340,26.22705132,133.45,133.4,2.24128822]
[1768809339543,2.38047862,133.44,133.4,2.24128822]
[1768809339748,2.38047862,133.44,133.41,2.37233188]
[1768809341444,7.49456643,133.43,133.41,2.37233188]
[1768809341644,7.43456644,133.43,133.41,2.37233188]
[1768809344732,7.37456645,133.43,133.41,2.37233188]
[1768809347746,9.75504507,133.43,133.39,18.73080092]
[1768809349647,9.75504507,133.43,133.38,33.02802048]
[1768809349847,9.75504507,133.43,133.39,2.37233188]
[1768809351451,9.69504508,133.43,133.39,2.37233188]
[1768809351749,9.69504508,133.43,133.4,2.37233188]
[1768809353354,9.69504508,133.43,133.4,24.86698939]
[1768809354334,9.63504509,133.43,133.4,24.86698939]
[1768809354534,2.35416947,133.42,133.4,22.49465751]
[1768809354734,2.29416948,133.42,133.4,22.49465751]
[1768809355660,2.29416948,133.42,133.4,24.83891719]
[1768809356658,9.78930845,133.42,133.4,24.83891719]
[1768809357757,9.78930845,133.42,133.4,33.74974548]
[1768809358535,9.78930845,133.42,133.4,31.4054858]
[1768809358862,9.78930845,133.42,133.4,33.74974548]
[1768809359055,9.78930845,133.42,133.4,11.25508797]
[1768809359279,9.78930845,133.42,133.4,8.91082829]
[1768809360346,2.35416947,133.41,133.37,2.7209139]
[1768809360744,2.35416947,133.41,133.37,0.37665422]
[1768809362241,7.49625187,133.4,133.37,0.37665422]
[1768809362446,2.29416948,133.39,133.35,0.2]
[1768809364563,2.35416947,133.38,133.35,0.60943084]
[1768809364968,7.49732069,133.39,133.36,0.40943084]
[1768809365163,9.85051746,133.4,133.37,0.40943084]
[1768809369474,2.35416947,133.42,133.39,0.41453058]
[1768809369667,2.35416947,133.42,133.4,0.41453058]
[1768809369668,7.49516099,133.42,133.4,0.41453058]
[1768809370558,9.84933046,133.42,133.39,79.4368693]
[1768809370875,2.35416947,133.41,133.39,79.02]
[1768809371172,9.85006192,133.41,133.39,79.02]
[1768809372772,2.35416947,133.41,133.39,79.02]
[1768809375474,2.35416947,133.41,133.39,16.42]
[1768809382778,9.75075952,133.42,133.39,16.86493704]
[1768809382980,9.7500651,133.43,133.4,0.44493704]
[1768809383156,2.25543123,133.42,133.4,0.44493704]
[1768809383576,2.25543123,133.42,133.39,26.78103563]
[1768809385078,2.25543123,133.43,133.4,0.44889314]
[1768809385663,2.25543123,133.43,133.39,26.78494629]
[1768809388973,9.74906516,133.45,133.42,0.45653632]
[1768809389381,2.25543123,133.44,133.42,0.45653632]
[1768809389577,2.25543123,133.44,133.41,2.87569411]
[1768809389968,2.25543123,133.44,133.41,0.45839257]
[1768809390168,2.25543123,133.44,133.4,7.95459736]
[1768809390588,2.25543123,133.44,133.4,10.3718989]
[1768809390889,7.49404785,133.44,133.4,7.95459736]
[1768809391070,7.49366364,133.45,133.4,24.37459736]
[1768809391579,7.49366364,133.45,133.4,26.7918989]
[1768809391772,7.49366364,133.45,133.41,2.20842585]
[1768809392890,139.90670642,133.49,133.41,2.20842585]
[1768809392891,26.22115672,133.48,133.41,2.20842585]
[1768809393189,2.25543123,133.47,133.41,2.20842585]
[1768809394686,2.25543123,133.47,133.43,2.20842585]
[1768809394897,2.25543123,133.47,133.44,2.20842585]
[1768809395191,2.25543123,133.47,133.44,4.62403213]
[1768809396488,2.25543123,133.47,133.44,12.11771037]
[1768809396684,2.25543123,133.47,133.44,74.71771037]
[1768809396885,2.25543123,133.47,133.45,2.20842585]
[1768809397675,2.25543123,133.48,133.45,2.20842585]
[1768809397897,2.25543123,133.49,133.46,2.20842585]
[1768809398280,2.25543123,133.5,133.47,2.20842585]
[1768809406203,2.25543123,133.5,133.46,26.29674159]
[1768809408205,9.74607259,133.5,133.46,26.29674159]
[1768809408506,2.38870407,133.49,133.46,26.29674159]
[1768809410899,2.38870407,133.49,133.46,28.71234787]
[1768809415112,2.38870407,133.49,133.46,26.29674159]
[1768809415297,2.38870407,133.49,133.46,28.71234787]
[1768809419416,2.33883919,133.5,133.47,2.22805198]
[1768809420496,2.33883919,133.5,133.47,9.72031812]
[1768809440407,2.33883919,133.52,133.48,2.22805198]
[1768809441216,2.33883919,133.52,133.47,18.62805198]
[1768809442434,2.33883919,133.5,133.47,18.62805198]
[1768809442650,9.7459829,133.51,133.48,2.27734994]
[1768809443937,2.25590726,133.5,133.48,2.27734994]
[1768809445123,9.7459829,133.51,133.48,2.27734994]
[1768809445534,2.25590726,133.52,133.49,2.27734994]
[1768809446437,2.25590726,133.53,133.5,2.27734994]
[1768809448632,2.25590726,133.52,133.5,2.27734994]
[1768809456445,9.74555387,133.52,133.5,2.27734994]
[1768809456642,9.74555387,133.52,133.49,64.87734994]
[1768809457435,2.25590726,133.51,133.49,62.6]
[1768809457633,2.25590726,133.51,133.49,60.20409311]
[1768809458622,2.25590726,133.5,133.49,60.20409311]
[1768809458822,2.25590726,133.5,133.47,62.48144305]
[1768809460042,2.25590726,133.5,133.47,2.27734994]
[1768809460844,9.74717956,133.5,133.47,2.27734994]
[1768809466144,9.68717957,133.5,133.47,2.27734994]
[1768809466745,9.7464226,133.51,133.48,2.31834214]
[1768809467252,2.25620989,133.5,133.47,2.31834214]
[1768809468121,2.25620989,133.49,133.47,2.31834214]
[1768809468347,2.25620989,133.49,133.46,78.92243525]
[1768809468643,2.25620989,133.49,133.46,18.71834214]
[1768809469441,9.74746944,133.49,133.46,18.71834214]
[1768809473742,2.20689779,133.48,133.45,62.48733717]
[1768809474051,2.20689779,133.48,133.45,60.20409311]
[1768809474346,2.20689779,133.48,133.46,2.28324406]
[1768809475050,2.1468978,133.48,133.46,2.28324406]
[1768809475428,7.49125955,133.49,133.46,2.28324406]
[1768809477252,9.69815734,133.49,133.46,2.28324406]
[1768809479376,9.63815735,133.49,133.46,2.28324406]
[1768809479534,2.20689779,133.49,133.46,2.28324406]
[1768809479948,2.20689779,133.5,133.46,2.28324406]
[1768809481553,63.65134041,133.54,133.46,2.28324406]
[1768809481554,2.20689779,133.52,133.47,2.28324406]
[1768809482631,7.49007564,133.51,133.47,2.28324406]
[1768809482836,9.69697343,133.51,133.47,2.28324406]
[1768809488259,2.20689779,133.51,133.48,2.28324406]
[1768809488457,2.20689779,133.51,133.47,2.28324406]
[1768809490951,9.69710869,133.51,133.47,2.28324406]
[1768809491566,2.20689779,133.5,133.47,2.28324406]
[1768809491760,2.1468978,133.5,133.47,2.28324406]
[1768809493267,2.08689781,133.5,133.47,2.28324406]
[1768809496665,2.20689779,133.51,133.47,2.28324406]
[1768809498459,2.20689779,133.51,133.48,2.28324406]
[1768809499768,2.20689779,133.5,133.47,60.20409311]
[1768809499975,2.20689779,133.5,133.47,62.48733717]
[1768809501375,9.69764964,133.5,133.48,2.28324406]
[1768809502277,9.69764964,133.5,133.47,62.48733717]
[1768809502673,9.69764964,133.5,133.47,60.20409311]
[1768809502860,9.69764964,133.5,133.48,2.20117156]
[1768809505578,2.35098223,133.51,133.48,2.20117156]
[1768809506575,9.84106412,133.51,133.48,2.20117156]
[1768809509481,2.35098223,133.52,133.48,2.20117156]
[1768809509666,2.35098223,133.52,133.49,2.20117156]
[1768809512871,9.84038617,133.53,133.49,2.20117156]
[1768809513386,2.35098223,133.52,133.49,2.20117156]
[1768809514181,2.35098223,133.54,133.5,2.20117156]
[1768809515580,9.83938785,133.54,133.5,2.20117156]
[1768809516273,9.83938785,133.54,133.51,2.20117156]
[1768809522390,2.36952926,133.53,133.5,9.66131636]
[1768809523092,2.36952926,133.53,133.51,2.17074049]
[1768809528392,2.36952926,133.52,133.5,60.20409311]
[1768809528591,7.48903694,133.53,133.48,2.17074049]
[1768809528797,26.21142142,133.53,133.48,2.17074049]
[1768809530577,1.94376831,133.52,133.48,2.17074049]
[1768809533002,7.49007564,133.51,133.48,2.17074049]
[1768809533203,7.43055436,133.51,133.48,2.17074049]
[1768809536711,1.94744981,133.51,133.48,2.17074049]
[1768809537893,1.94744981,133.51,133.47,2.28417958]
[1768809538793,7.4906367,133.5,133.47,2.28417958]
[1768809540292,9.44495891,133.5,133.47,2.28417958]
[1768809541820,1.95599125,133.49,133.45,2.28417958]
[1768809542701,1.95599125,133.49,133.44,2.28417958]
[1768809543725,1.95927206,133.47,133.44,2.28417958]
[1768809545207,1.95927206,133.47,133.43,2.28417958]
[1768809545801,9.45535969,133.46,133.43,2.28417958]
[1768809546027,1.96247793,133.45,133.41,2.28417958]
[1768809548024,9.45639168,133.45,133.41,2.28417958]
[1768809560631,9.45639168,133.45,133.41,7.49549406]
[1768809560825,9.45639168,133.45,133.42,2.28417958]
[1768809561029,9.47738666,133.46,133.42,2.28417958]
[1768809562128,9.47738666,133.46,133.43,2.28417958]
[1768809568545,28.21765456,133.48,133.43,2.28417958]
[1768809568744,26.22196543,133.48,133.43,2.28417958]
[1768809568921,1.99568913,133.47,133.43,2.28417958]
[1768809570849,9.48839308,133.47,133.43,2.28417958]
[1768809581543,9.48839308,133.47,133.44,2.23955542]
[1768809585865,2.01520453,133.46,133.43,2.23955542]
[1768809586747,9.50887823,133.47,133.44,2.23955542]
[1768809600564,7.49270395,133.47,133.44,2.23955542]
[1768809601667,2.03025912,133.48,133.44,2.23955542]
[1768809602874,2.03025912,133.48,133.38,2.41617325]
[1768809603051,2.31103658,133.46,133.38,16.42]
[1768809603245,2.31103658,133.46,133.35,4.1111094]
[1768809603585,2.31103658,133.44,133.36,7.49815476]
[1768809603751,2.31103658,133.43,133.35,26.53505453]
[1768809604071,2.31103658,133.43,133.35,2.61617325]
[1768809604254,2.31103658,133.43,133.35,0.2]
[1768809604569,2.31103658,133.43,133.35,2.61617325]
[1768809604764,2.31103658,133.43,133.36,2.36019052]
[1768809604951,2.31103658,133.43,133.38,2.36019052]
[1768809605552,2.31103658,133.41,133.37,2.36019052]
[1768809605757,2.31103658,133.41,133.36,2.41617325]
[1768809605758,2.31103658,133.41,133.36,2.36019052]
[1768809605955,2.31103658,133.41,133.35,0.2]
[1768809606172,2.31103658,133.41,133.35,2.56019052]
[1768809607665,2.31103658,133.39,133.35,2.56019052]
[1768809609056,2.31103658,133.38,133.35,2.56019052]
[1768809609556,2.26102962,133.38,133.35,2.56019052]
[1768809611581,2.21102452,133.38,133.35,2.56019052]
[1768809614076,2.05101358,133.38,133.35,2.56019052]
[1768809614279,7.49568997,133.41,133.36,2.36019052]
[1768809615177,7.49568997,133.41,133.36,4.77636377]
[1768809615378,26.2330578,133.42,133.37,2.36019052]
[1768809616078,2.31103658,133.41,133.37,2.36019052]
[1768809616380,2.31103658,133.41,133.38,2.36019052]
[1768809616973,2.31103658,133.41,133.37,2.41617325]
[1768809616974,2.31103658,133.41,133.36,7.49816945]
[1768809617160,2.31103658,133.41,133.37,2.36019052]
[1768809617474,2.31103658,133.39,133.35,2.61617325]
[1768809617659,2.31103658,133.39,133.36,2.36019052]
[1768809618358,2.31103658,133.39,133.35,0.2]
[1768809619367,2.31103658,133.37,133.33,0.2]
[1768809622000,7.49850029,133.36,133.33,2.56019052]
[1768809622183,9.80953687,133.36,133.33,2.56019052]
[1768809622476,2.31103658,133.35,133.33,0.2]
[1768809623779,2.29787085,133.34,133.33,0.2]
[1768809624178,9.79715934,133.35,133.33,0.2]
[1768809624377,9.79715934,133.35,133.32,2.35721826]
[1768809625058,7.49928849,133.35,133.32,2.35721826]
[1768809625276,9.79715934,133.35,133.32,2.35721826]
[1768809626765,2.29787085,133.35,133.32,2.35721826]
[1768809629191,9.79694182,133.35,133.32,2.35721826]
[1768809629573,2.29787085,133.35,133.32,2.35721826]
[1768809629768,2.29787085,133.35,133.33,2.15721826]
[1768809629987,2.29787085,133.36,133.33,2.15721826]
[1768809631091,2.29787085,133.36,133.34,2.15721826]
[1768809631494,9.79643626,133.36,133.33,2.15721826]
[1768809633788,2.29787085,133.36,133.33,2.15721826]
[1768809633989,2.29787085,133.36,133.34,2.15721826]
[1768809635287,9.79642912,133.36,133.33,2.15721826]
[1768809635688,9.79642912,133.36,133.32,9.85781687]
[1768809635689,2.29787085,133.35,133.32,9.85781687]
[1768809635993,2.29787085,133.35,133.32,2.35721826]
[1768809636498,9.79642912,133.36,133.33,2.15721826]
[1768809636798,2.29787085,133.35,133.32,9.85780009]
[1768809637801,9.79697403,133.35,133.32,2.35721826]
[1768809638300,2.29787085,133.35,133.32,2.35721826]
[1768809639096,2.29787085,133.35,133.32,9.8578912]
[1768809641712,2.29787085,133.35,133.33,2.14888999]
[1768809642778,2.28549026,133.34,133.32,0.2]
[1768809643188,2.28549026,133.34,133.32,2.34888999]
[1768809644703,2.28549026,133.33,133.32,0.2]
[1768809645402,7.49966898,133.34,133.32,0.2]
[1768809645403,9.78515924,133.34,133.32,0.2]
[1768809648021,2.28549026,133.33,133.31,0.2]
[1768809648499,2.28549026,133.33,133.3,0.2]
[1768809649500,2.28549026,133.33,133.29,0.2]
[1768809650022,2.28549026,133.31,133.29,0.2]
[1768809650513,9.78624033,133.32,133.29,2.34888999]
[1768809650693,2.28549026,133.31,133.29,0.2]
[1768809652416,9.78683624,133.31,133.29,0.2]
[1768809656616,2.28549026,133.31,133.29,0.2]
[1768809658721,2.28549026,133.31,133.29,2.47989532]
[1768809659017,2.28549026,133.31,133.29,0.2]
[1768809659606,2.28549026,133.31,133.29,2.47989532]
[1768809661320,2.14938559,133.33,133.29,9.98211424]
[1768809661518,2.14938559,133.34,133.3,2.27989532]
[1768809661711,2.14938559,133.34,133.31,2.27989532]
[1768809662113,9.6484482,133.35,133.32,2.27989532]
[1768809662617,2.14938559,133.34,133.32,2.27989532]
[1768809662802,2.14938559,133.34,133.31,4.70037114]
[1768809663913,2.14938559,133.34,133.31,2.27989532]
[1768809664401,2.14938559,133.34,133.31,2.42047582]
[1768809664607,2.14938559,133.35,133.32,2.27989532]
[1768809665004,9.64846117,133.35,133.32,2.27989532]
[1768809675337,2.14938559,133.36,133.33,2.27989532]
[1768809675521,4.56953364,133.36,133.32,4.70004337]
[1768809675715,2.14938559,133.35,133.32,4.70004337]
[1768809675916,2.14938559,133.35,133.33,2.27989532]
[1768809677638,9.64852986,133.35,133.33,2.27989532]
[1768809678436,9.64852986,133.35,133.32,4.70004337]
[1768809685542,9.64852986,133.35,133.32,2.42014805]
[1768809685747,9.64852986,133.35,133.33,2.11118278]
[1768809687536,9.64852986,133.35,133.31,2.42014805]
[1768809687726,9.64852986,133.35,133.32,2.11118278]
[1768809691547,2.06379002,133.34,133.31,2.11118278]
[1768809691750,2.00378999,133.34,133.31,2.11118278]
[1768809694949,9.50357909,133.34,133.31,2.11118278]
[1768809698536,2.06379002,133.33,133.31,2.11118278]
[1768809698757,2.00378997,133.33,133.31,2.11118278]
[1768809698933,7.4997891,133.34,133.31,2.11118278]
[1768809699134,7.49930121,133.35,133.31,2.11118278]
[1768809699448,7.49930121,133.35,133.32,2.12979991]
[1768809700665,9.5401232,133.35,133.32,2.12979991]
[1768809703050,2.04082199,133.34,133.32,2.12979991]
[1768809704580,9.5401232,133.35,133.32,2.12979991]
[1768809712764,9.4801232,133.35,133.32,2.12979991]
[1768809715565,4.58854478,133.34,133.32,2.12979991]
[1768809715863,2.16835233,133.34,133.32,2.12979991]
[1768809716359,4.58854478,133.34,133.32,2.12979991]
[1768809716667,2.16835233,133.34,133.32,2.12979991]
[1768809717859,9.66806247,133.34,133.32,2.12979991]
[1768809718767,2.16835233,133.34,133.32,2.12979991]
[1768809720567,7.49928323,133.35,133.32,2.12979991]
[1768809721267,9.66763556,133.35,133.32,2.12979991]
[1768809721872,12.08782801,133.35,133.32,2.12979991]
[1768809722052,9.66763556,133.35,133.32,2.12979991]
[1768809722367,12.08782801,133.35,133.32,2.12979991]
[1768809722952,9.66763556,133.35,133.32,2.12979991]
[1768809723250,12.08782801,133.35,133.32,2.12979991]
[1768809725174,9.66763556,133.35,133.32,2.12979991]
[1768809727373,2.16835233,133.37,133.33,2.10835432]
[1768809727679,4.58854478,133.37,133.33,2.10835432]
[1768809728470,2.16835233,133.36,133.33,2.10835432]
[1768809730275,9.66698071,133.36,133.33,2.10835432]
[1768809731464,12.08717316,133.36,133.33,2.10835432]
[1768809731674,2.42019245,133.35,133.33,2.10835432]
[1768809732378,12.08717316,133.36,133.33,2.10835432]
[1768809733077,9.66698071,133.36,133.33,2.10835432]
[1768809733779,12.08717316,133.36,133.33,2.10835432]
[1768809735674,2.42019245,133.35,133.33,2.10835432]
[1768809735878,4.58854478,133.35,133.32,2.10835432]
[1768809739391,2.16835233,133.35,133.32,2.10835432]
[1768809740795,9.66698071,133.36,133.32,2.10835432]
[1768809740997,12.08717316,133.36,133.32,2.10835432]
[1768809744698,9.66698071,133.36,133.32,2.10835432]
[1768809744996,12.08717316,133.36,133.32,2.10835432]
[1768809746801,9.66698071,133.36,133.33,2.17090442]
[1768809748098,4.56042118,133.39,133.34,2.17090442]
[1768809748598,2.14022873,133.38,133.34,2.17090442]
[1768809749198,9.63785487,133.38,133.34,2.17090442]
[1768809750195,9.63785487,133.38,133.35,2.17090442]
[1768809750497,12.05804732,133.38,133.35,2.14090443]
[1768809751200,4.56042118,133.38,133.35,2.14090443]
[1768809751374,2.42019245,133.38,133.35,2.14090443]
[1768809751579,4.56042118,133.38,133.35,2.14090443]
[1768809751801,2.14022873,133.38,133.35,2.14090443]
[1768809754508,12.05748684,133.39,133.35,2.14090443]
[1768809755097,9.91725811,133.39,133.35,2.14090443]
[1768809755292,2.14022873,133.38,133.35,2.14090443]
[1768809755499,4.56042118,133.38,133.35,2.14090443]
[1768809755697,4.56042118,133.37,133.34,2.17090442]
[1768809756307,4.56042118,133.37,133.34,2.14090443]
[1768809756489,2.42019245,133.37,133.31,9.91957423]
[1768809756695,4.56042118,133.36,133.31,32.78068435]
[1768809756882,4.56042118,133.36,133.31,30.3604919]
[1768809757406,2.14022873,133.36,133.31,32.78068435]
[1768809757706,2.14022873,133.36,133.32,7.50064174]
[1768809758006,9.63882713,133.36,133.32,7.50064174]
[1768809758606,9.63882713,133.36,133.33,2.17090442]
[1768809761207,7.4985984,133.36,133.33,2.17090442]
[1768809764990,9.91853889,133.36,133.33,2.17090442]
[1768809767201,7.4985984,133.36,133.33,2.17090442]
[1768809769416,9.61931254,133.36,133.33,2.17090442]
[1768809781626,2.12882557,133.34,133.32,18.74343979]
[1768809781817,2.12882557,133.33,133.31,2.08074682]
[1768809782019,2.12882557,133.32,133.3,2.08074682]
[1768809782216,12.04927364,133.33,133.3,2.08074682]
[1768809790155,12.04927364,133.33,133.3,2.05074683]
[1768809792849,2.12882557,133.34,133.31,2.08074682]
[1768809793153,4.54876606,133.35,133.31,18.74837693]
[1768809793463,2.12882557,133.35,133.31,21.16831742]
[1768809793832,2.12882557,133.35,133.31,18.74837693]
[1768809794047,2.12882557,133.35,133.31,21.16831742]
[1768809794353,2.12882557,133.35,133.31,28.66940953]
[1768809794651,12.04756278,133.36,133.32,2.41994049]
[1768809794955,12.04756278,133.36,133.33,2.08074682]
[1768809795659,2.12882557,133.35,133.31,20.82912375]
[1768809795953,2.12882557,133.34,133.31,2.08074682]
[1768809797042,2.12882557,133.34,133.3,39.66618093]
[1768809797249,2.12882557,133.32,133.3,2.08074682]
[1768809797862,4.54876606,133.33,133.3,2.08074682]
[1768809798561,2.12882557,133.33,133.3,2.08074682]
[1768809802776,12.01818859,133.34,133.3,2.08074682]
[1768809803467,2.09813576,133.33,133.3,2.08074682]
[1768809804380,2.09813576,133.33,133.3,20.82699756]
[1768809805166,2.09813576,133.33,133.31,2.12225108]
[1768809805482,2.09813576,133.33,133.31,2.09225111]
[1768809805895,2.09813576,133.34,133.31,2.09225111]
[1768809806260,2.09813576,133.34,133.31,2.06225112]
[1768809809364,2.09813576,133.34,133.31,2.03225113]
[1768809810994,12.01780902,133.34,133.31,2.03225113]
[1768809811197,9.59786853,133.34,133.31,2.03225113]
[1768809811482,12.01780902,133.34,133.31,2.03225113]
[1768809811788,12.01780902,133.34,133.31,2.00225116]
[1768809813187,9.59786853,133.34,133.31,2.00225116]
[1768809813486,12.01780902,133.34,133.31,2.00225116]
[1768809817596,9.59786853,133.34,133.31,2.00225116]
[1768809818494,9.59786853,133.34,133.31,1.97225117]
[1768809818887,2.09813576,133.33,133.29,16.56151242]
[1768809819093,2.09813576,133.33,133.29,45.28840159]
[1768809819692,4.51807625,133.33,133.29,35.36625074]
[1768809819894,2.14716185,133.32,133.29,35.36625074]
[1768809820469,2.14716185,133.32,133.29,37.5072352]
[1768809820789,2.14716185,133.32,133.29,45.00954417]
[1768809820993,12.06734621,133.33,133.3,2.14098446]
[1768809821890,4.56710234,133.32,133.3,2.11098447]
[1768809822088,4.56710234,133.32,133.29,0.2]
[1768809822288,2.14716185,133.31,133.29,0.2]
[1768809822593,26.25071263,133.33,133.27,39.13322652]
[1768809822594,2.14716185,133.29,133.27,0.2]
[1768809822803,26.25071263,133.33,133.27,0.2]
[1768809822804,2.14716185,133.32,133.27,0.2]
[1768809823007,4.56945879,133.3,133.27,0.2]
[1768809823376,4.56945879,133.29,133.27,0.2]
[1768809823782,2.14716185,133.29,133.27,0.2]
[1768809825107,9.65016305,133.28,133.27,1e-08]
[1768809825403,12.07245999,133.28,133.27,1e-08]
[1768809826198,9.65016305,133.28,133.27,1e-08]
[1768809826404,12.07245999,133.28,133.27,1e-08]
[1768809827694,4.56945879,133.28,133.27,1e-08]
[1768809827881,2.14716185,133.28,133.27,1e-08]
[1768809828698,9.64901498,133.31,133.27,2.14098447]
[1768809828900,12.07131192,133.31,133.27,2.14098447]
[1768809829196,9.64901498,133.31,133.27,2.14098447]
[1768809829400,9.92320217,133.32,133.29,2.14098446]
[1768809829578,12.07036402,133.32,133.29,2.14098446]
[1768809831501,9.64806708,133.32,133.29,2.14098446]
[1768809831682,2.14716185,133.32,133.29,2.14098446]
[1768809832385,2.14716185,133.32,133.3,2.14098446]
[1768809832779,2.42229694,133.33,133.3,2.14098446]
[1768809832973,4.38191332,133.34,133.3,2.14098446]
[1768809833174,11.88106673,133.35,133.31,1.95283074]
[1768809833385,1.95961638,133.34,133.31,1.95283074]
[1768809833794,11.88106673,133.35,133.32,1.95283074]
[1768809834401,1.95961638,133.37,133.33,1.95283074]
[1768809834702,1.95961638,133.37,133.34,1.95283074]
[1768809835276,1.95961638,133.37,133.33,4.37512768]
[1768809835482,9.45765518,133.37,133.33,4.37512768]
[1768809836102,1.95961638,133.37,133.34,1.95283074]
[1768809836911,11.87989865,133.37,133.34,1.95283074]
[1768809840399,9.45760171,133.37,133.34,1.95283074]
[1768809840912,11.87989865,133.37,133.34,1.95283074]
[1768809841616,9.45760171,133.37,133.34,1.95283074]
[1768809841817,11.87989865,133.37,133.34,1.95283074]
[1768809842818,9.45760171,133.37,133.34,1.95283074]
[1768809844007,7.49717656,133.39,133.37,1.95283074]
[1768809844207,9.45679294,133.39,133.36,1.95283074]
[1768809847033,1.95961638,133.39,133.36,1.95283074]
[1768809847331,1.95961638,133.39,133.36,4.37512768]
[1768809847919,7.49648472,133.4,133.37,1.95283074]
[1768809848108,1.95961638,133.42,133.38,1.95283074]
[1768809848307,9.45431975,133.43,133.4,4.37512768]
[1768809848508,1.95961638,133.43,133.4,1.86611509]
[1768809848713,1.95961638,133.43,133.4,1.83611509]
[1768809850126,9.45288159,133.46,133.42,2.42229694]
[1768809850330,9.45288159,133.46,133.42,2.39229694]
[1768809850507,1.95961638,133.45,133.42,4.34512768]
[1768809850708,9.45316365,133.45,133.42,1.95283074]
[1768809851018,11.87490191,133.46,133.42,1.95283074]
[1768809851221,9.45260497,133.46,133.43,1.95283074]
[1768809852126,9.45260497,133.46,133.42,4.37512768]
[1768809852326,1.95961638,133.45,133.42,1.95283074]
[1768809852525,4.38191332,133.45,133.42,1.95283074]
[1768809853626,11.87556962,133.45,133.42,1.95283074]
[1768809856539,4.38191332,133.43,133.39,1.95283074]
[1768809858461,1.95961638,133.41,133.38,1.95283074]
[1768809859248,4.38191332,133.41,133.38,1.95283074]
[1768809860524,11.87761776,133.41,133.38,1.95283074]